[Event "Titled Tuesday Blitz October 11 Early 2022"]
[White "Tiarks, Jann-Christian"]
[Black "Pimpalkhare, Vedant"]
[WhiteFideId "12951595"]
[BlackFideId "25048236"]
[WhiteElo "2194"]
[BlackElo "2182"]
[Result "1-0"]
[Round "08"]
[TimeControl "180+1"]
[Date "2022.10.12"]
[WhiteClock "0:00:41"]
[BlackClock "0:00:27"]

1. e4 {[%clk 0:03:00]}  e6 {[%clk 0:02:59]} 2. d4 {[%clk 0:02:58]}  d5 {[%clk 0:03:00]} 3. Nc3 {[%clk 0:02:58]}  Nf6 {[%clk 0:02:59]} 4. Bg5 {[%clk 0:02:58]}  dxe4 {[%clk 0:02:58]} 5. Nxe4 {[%clk 0:02:58]}  Be7 {[%clk 0:02:58]} 6. Bxf6 {[%clk 0:02:54]}  gxf6 {[%clk 0:02:59]} 7. Nf3 {[%clk 0:02:54]}  f5 {[%clk 0:02:59]} 8. Ned2 {[%clk 0:02:49]}  a6 {[%clk 0:02:55]} 9. c3 {[%clk 0:02:49]}  b5 {[%clk 0:02:55]} 10. Ne5 {[%clk 0:02:47]}  Bb7 {[%clk 0:02:42]} 11. Qh5 {[%clk 0:02:45]}  O-O {[%clk 0:02:42]} 12. Ndf3 {[%clk 0:02:36]}  f6 {[%clk 0:02:38]} 13. Nd3 {[%clk 0:02:33]}  Nd7 {[%clk 0:02:34]} 14. Be2 {[%clk 0:02:27]}  Qe8 {[%clk 0:02:33]} 15. Qh3 {[%clk 0:02:14]}  Bd6 {[%clk 0:02:29]} 16. O-O {[%clk 0:02:10]}  e5 {[%clk 0:02:26]} 17. Nh4 {[%clk 0:02:01]}  e4 {[%clk 0:02:12]} 18. Nc5 {[%clk 0:01:58]}  Nxc5 {[%clk 0:02:02]} 19. dxc5 {[%clk 0:01:58]}  Bxc5 {[%clk 0:01:59]} 20. Nxf5 {[%clk 0:01:58]}  Kh8 {[%clk 0:01:53]} 21. Bh5 {[%clk 0:01:47]}  Qe6 {[%clk 0:01:49]} 22. Rfe1 {[%clk 0:01:37]}  Rg8 {[%clk 0:01:44]} 23. Bg4 {[%clk 0:01:36]}  Bc8 {[%clk 0:01:14]} 24. Kh1 {[%clk 0:01:18]}  Rxg4 {[%clk 0:01:11]} 25. Qxg4 {[%clk 0:01:18]}  Qxf5 {[%clk 0:01:11]} 26. Qxe4 {[%clk 0:01:15]}  Qxe4 {[%clk 0:01:06]} 27. Rxe4 {[%clk 0:01:16]}  Bb7 {[%clk 0:01:05]} 28. Rg4 {[%clk 0:01:11]}  Rg8 {[%clk 0:00:59]} 29. Rxg8+ {[%clk 0:01:10]}  Kxg8 {[%clk 0:01:00]} 30. f3 {[%clk 0:01:11]}  Kf7 {[%clk 0:00:59]} 31. Re1 {[%clk 0:01:10]}  Bd5 {[%clk 0:00:58]} 32. b3 {[%clk 0:01:07]}  a5 {[%clk 0:00:56]} 33. Rd1 {[%clk 0:01:00]}  c6 {[%clk 0:00:49]} 34. h3 {[%clk 0:00:58]}  Ke6 {[%clk 0:00:40]} 35. Kh2 {[%clk 0:00:59]}  Bd6+ {[%clk 0:00:40]} 36. Kg1 {[%clk 0:00:58]}  Be5 {[%clk 0:00:40]} 37. Rc1 {[%clk 0:00:54]}  c5 {[%clk 0:00:32]} 38. Kf2 {[%clk 0:00:52]}  a4 {[%clk 0:00:31]} 39. c4 {[%clk 0:00:47]}  bxc4 {[%clk 0:00:31]} 40. bxc4 {[%clk 0:00:48]}  Bd4+ {[%clk 0:00:29]} 41. Ke2 {[%clk 0:00:46]}  Bc6 {[%clk 0:00:30]} 42. Kd3 {[%clk 0:00:44]}  Be8 {[%clk 0:00:27]} 43. Re1+ {[%clk 0:00:41]}  Kd6 {[%clk 0:00:27]} 44. Rxe8 {[%clk 0:00:41]} 1-0


[Site "https://www.chess.com"]

[Event "Titled Tuesday Blitz October 11 Early 2022"]
[White "Vaibhav Jayant Raut"]
[Black "Barria Zuniga, Daniel"]
[WhiteFideId "5089034"]
[BlackFideId "3400816"]
[WhiteElo "2147"]
[BlackElo "2414"]
[Result "1/2-1/2"]
[Round "08"]
[TimeControl "180+1"]
[Date "2022.10.11"]
[WhiteClock "0:00:06"]
[BlackClock "0:00:04"]

1. c4 {[%clk 0:03:00]}  e6 {[%clk 0:02:56]} 2. Nf3 {[%clk 0:03:00]}  d5 {[%clk 0:02:57]} 3. d4 {[%clk 0:03:00]}  Nf6 {[%clk 0:02:57]} 4. g3 {[%clk 0:03:01]}  Be7 {[%clk 0:02:57]} 5. Bg2 {[%clk 0:03:01]}  O-O {[%clk 0:02:57]} 6. O-O {[%clk 0:03:02]}  dxc4 {[%clk 0:02:58]} 7. Qc2 {[%clk 0:03:01]}  a6 {[%clk 0:02:58]} 8. a4 {[%clk 0:03:01]}  c5 {[%clk 0:02:57]} 9. Qxc4 {[%clk 0:02:53]}  Nbd7 {[%clk 0:02:53]} 10. dxc5 {[%clk 0:02:51]}  Bxc5 {[%clk 0:02:51]} 11. b4 {[%clk 0:02:49]}  Be7 {[%clk 0:02:48]} 12. Bb2 {[%clk 0:02:48]}  b5 {[%clk 0:02:46]} 13. Qd3 {[%clk 0:02:38]}  Bb7 {[%clk 0:02:41]} 14. axb5 {[%clk 0:02:31]}  axb5 {[%clk 0:02:40]} 15. Qxb5 {[%clk 0:02:28]}  Rxa1 {[%clk 0:02:33]} 16. Bxa1 {[%clk 0:02:29]}  Qa8 {[%clk 0:02:30]} 17. Bc3 {[%clk 0:02:17]}  Rc8 {[%clk 0:02:16]} 18. Qd3 {[%clk 0:02:11]}  Be4 {[%clk 0:02:14]} 19. Qd2 {[%clk 0:02:07]}  Nb6 {[%clk 0:02:14]} 20. Bd4 {[%clk 0:02:01]}  Rc2 {[%clk 0:01:59]} 21. Bxb6 {[%clk 0:01:42]}  Rxd2 {[%clk 0:01:58]} 22. Nbxd2 {[%clk 0:01:43]}  Bd5 {[%clk 0:01:48]} 23. Bc5 {[%clk 0:01:32]}  Bxc5 {[%clk 0:01:40]} 24. bxc5 {[%clk 0:01:33]}  Qa3 {[%clk 0:01:39]} 25. Rb1 {[%clk 0:01:29]}  g6 {[%clk 0:01:37]} 26. Rb8+ {[%clk 0:01:06]}  Kg7 {[%clk 0:01:36]} 27. Rc8 {[%clk 0:01:06]}  Qa6 {[%clk 0:01:33]} 28. Rc7 {[%clk 0:00:59]}  Qxe2 {[%clk 0:01:32]} 29. Bf1 {[%clk 0:00:46]}  Qd1 {[%clk 0:01:30]} 30. Ne5 {[%clk 0:00:28]}  Qxd2 {[%clk 0:01:26]} 31. Rxf7+ {[%clk 0:00:28]}  Kg8 {[%clk 0:01:24]} 32. Rxf6 {[%clk 0:00:26]}  Qc3 {[%clk 0:01:08]} 33. Nd7 {[%clk 0:00:15]}  Bc6 {[%clk 0:01:03]} 34. Rf8+ {[%clk 0:00:14]}  Kg7 {[%clk 0:01:03]} 35. Rc8 {[%clk 0:00:14]}  Qf3 {[%clk 0:00:58]} 36. Rxc6 {[%clk 0:00:07]}  Qxc6 {[%clk 0:00:59]} 37. Ne5 {[%clk 0:00:07]}  Qxc5 {[%clk 0:00:59]} 38. Nd3 {[%clk 0:00:07]}  Qd4 {[%clk 0:00:59]} 39. Nf4 {[%clk 0:00:08]}  Kf6 {[%clk 0:00:57]} 40. h4 {[%clk 0:00:07]}  e5 {[%clk 0:00:56]} 41. Ng2 {[%clk 0:00:07]}  g5 {[%clk 0:00:52]} 42. hxg5+ {[%clk 0:00:04]}  Kxg5 {[%clk 0:00:52]} 43. Ne3 {[%clk 0:00:05]}  h5 {[%clk 0:00:50]} 44. Ng2 {[%clk 0:00:05]}  Qa7 {[%clk 0:00:45]} 45. Nh4 {[%clk 0:00:03]}  Qa3 {[%clk 0:00:28]} 46. Be2 {[%clk 0:00:02]}  e4 {[%clk 0:00:23]} 47. Bf1 {[%clk 0:00:01]}  e3 {[%clk 0:00:18]} 48. fxe3 {[%clk 0:00:01]}  Kg4 {[%clk 0:00:14]} 49. Kh2 {[%clk 0:00:01]}  Qxe3 {[%clk 0:00:09]} 50. Bh3+ {[%clk 0:00:02]}  Kg5 {[%clk 0:00:09]} 51. Bg2 {[%clk 0:00:03]}  Qa7 {[%clk 0:00:04]} 52. Kh3 {[%clk 0:00:03]}  Qd7+ {[%clk 0:00:04]} 53. Kh2 {[%clk 0:00:03]}  Qc7 {[%clk 0:00:04]} 54. Nf3+ {[%clk 0:00:04]}  Kf6 {[%clk 0:00:02]} 55. Nh4 {[%clk 0:00:04]}  Qd6 {[%clk 0:00:02]} 56. Kh3 {[%clk 0:00:05]}  Qb8 {[%clk 0:00:03]} 57. Kh2 {[%clk 0:00:05]}  Qc8 {[%clk 0:00:03]} 58. Bf3 {[%clk 0:00:06]}  Qb8 {[%clk 0:00:03]} 59. Bg2 {[%clk 0:00:06]}  Qb2 {[%clk 0:00:04]} 60. Kh3 {[%clk 0:00:06]}  Qb8 {[%clk 0:00:04]} 61. Nf3 {[%clk 0:00:06]}  Qb2 {[%clk 0:00:04]} 62. Nh4 {[%clk 0:00:06]}  Qb8 {[%clk 0:00:04]} 1/2-1/2


[Site "https://www.chess.com"]

[Event "Titled Tuesday Blitz October 11 Early 2022"]
[White "Visakh N R"]
[Black "Le, Tuan Minh"]
[WhiteFideId "25012223"]
[BlackFideId "12401153"]
[WhiteElo "2466"]
[BlackElo "2530"]
[Result "1/2-1/2"]
[Round "08"]
[TimeControl "180+1"]
[Date "2022.10.11"]
[WhiteClock "0:01:03"]
[BlackClock "0:00:29"]

1. Nf3 {[%clk 0:03:00]}  d5 {[%clk 0:02:59]} 2. d4 {[%clk 0:03:00]}  Nf6 {[%clk 0:02:59]} 3. Bf4 {[%clk 0:03:01]}  c5 {[%clk 0:03:00]} 4. e3 {[%clk 0:02:56]}  Qb6 {[%clk 0:02:59]} 5. b3 {[%clk 0:02:54]}  Bg4 {[%clk 0:02:58]} 6. Nbd2 {[%clk 0:02:54]}  Nc6 {[%clk 0:02:58]} 7. c3 {[%clk 0:02:52]}  e6 {[%clk 0:02:46]} 8. Be2 {[%clk 0:02:52]}  Be7 {[%clk 0:02:46]} 9. O-O {[%clk 0:02:52]}  O-O {[%clk 0:02:46]} 10. Ne5 {[%clk 0:02:52]}  Bxe2 {[%clk 0:02:46]} 11. Qxe2 {[%clk 0:02:53]}  Rac8 {[%clk 0:02:47]} 12. Nxc6 {[%clk 0:02:45]}  Rxc6 {[%clk 0:02:47]} 13. dxc5 {[%clk 0:02:45]}  Bxc5 {[%clk 0:02:43]} 14. c4 {[%clk 0:02:46]}  Bb4 {[%clk 0:02:43]} 15. Be5 {[%clk 0:02:43]}  Bxd2 {[%clk 0:02:36]} 16. Bxf6 {[%clk 0:02:42]}  gxf6 {[%clk 0:02:34]} 17. Qxd2 {[%clk 0:02:32]}  dxc4 {[%clk 0:02:34]} 18. bxc4 {[%clk 0:02:33]}  Rxc4 {[%clk 0:02:35]} 19. Rab1 {[%clk 0:02:30]}  Qc7 {[%clk 0:02:31]} 20. Qb2 {[%clk 0:02:30]}  Kg7 {[%clk 0:02:21]} 21. Qxb7 {[%clk 0:02:30]}  Rd8 {[%clk 0:01:41]} 22. Qxc7 {[%clk 0:02:27]}  Rxc7 {[%clk 0:01:42]} 23. Rb4 {[%clk 0:02:27]}  Rd2 {[%clk 0:01:40]} 24. Ra4 {[%clk 0:02:26]}  f5 {[%clk 0:01:39]} 25. g3 {[%clk 0:02:26]}  Kf6 {[%clk 0:01:38]} 26. Kg2 {[%clk 0:02:26]}  h6 {[%clk 0:01:36]} 27. h3 {[%clk 0:02:25]}  Kg6 {[%clk 0:01:33]} 28. g4 {[%clk 0:02:25]}  fxg4 {[%clk 0:01:33]} 29. hxg4 {[%clk 0:02:26]}  e5 {[%clk 0:01:29]} 30. Kg3 {[%clk 0:02:23]}  f6 {[%clk 0:01:24]} 31. Ra6 {[%clk 0:02:21]}  Rd3 {[%clk 0:01:11]} 32. Rh1 {[%clk 0:02:05]}  Rdc3 {[%clk 0:01:05]} 33. Rd1 {[%clk 0:01:56]}  R3c6 {[%clk 0:01:05]} 34. Rd6 {[%clk 0:01:53]}  Rxd6 {[%clk 0:01:00]} 35. Rxd6 {[%clk 0:01:54]}  a5 {[%clk 0:00:52]} 36. Ra6 {[%clk 0:01:53]}  Rc5 {[%clk 0:00:52]} 37. f4 {[%clk 0:01:52]}  exf4+ {[%clk 0:00:52]} 38. exf4 {[%clk 0:01:53]}  Rc3+ {[%clk 0:00:49]} 39. Kh4 {[%clk 0:01:53]}  Ra3 {[%clk 0:00:49]} 40. f5+ {[%clk 0:01:53]}  Kf7 {[%clk 0:00:40]} 41. Ra7+ {[%clk 0:01:54]}  Ke8 {[%clk 0:00:40]} 42. Kh5 {[%clk 0:01:54]}  Rxa2 {[%clk 0:00:39]} 43. Kxh6 {[%clk 0:01:49]}  Rg2 {[%clk 0:00:40]} 44. Kg6 {[%clk 0:01:48]}  Rxg4+ {[%clk 0:00:40]} 45. Kxf6 {[%clk 0:01:49]}  a4 {[%clk 0:00:40]} 46. Ke6 {[%clk 0:01:43]}  Re4+ {[%clk 0:00:40]} 47. Kf6 {[%clk 0:01:43]}  Rg4 {[%clk 0:00:40]} 48. Ra6 {[%clk 0:01:41]}  Re4 {[%clk 0:00:33]} 49. Kg7 {[%clk 0:01:40]}  Rg4+ {[%clk 0:00:33]} 50. Kf6 {[%clk 0:01:38]}  Re4 {[%clk 0:00:33]} 51. Ra5 {[%clk 0:01:33]}  Rg4 {[%clk 0:00:31]} 52. Re5+ {[%clk 0:01:24]}  Kd7 {[%clk 0:00:31]} 53. Kf7 {[%clk 0:01:24]}  Kd6 {[%clk 0:00:30]} 54. Ra5 {[%clk 0:01:23]}  Kc6 {[%clk 0:00:30]} 55. f6 {[%clk 0:01:23]}  Kb6 {[%clk 0:00:31]} 56. Rf5 {[%clk 0:01:23]}  a3 {[%clk 0:00:29]} 57. Ke7 {[%clk 0:01:13]}  Re4+ {[%clk 0:00:29]} 58. Kf7 {[%clk 0:01:11]}  Ra4 {[%clk 0:00:25]} 59. Rf1 {[%clk 0:01:09]}  Kc5 {[%clk 0:00:26]} 60. Kg7 {[%clk 0:01:07]}  Ra7+ {[%clk 0:00:25]} 61. f7 {[%clk 0:01:07]}  Kb4 {[%clk 0:00:26]} 62. Kf6 {[%clk 0:01:06]}  Rxf7+ {[%clk 0:00:25]} 63. Kxf7 {[%clk 0:01:06]}  a2 {[%clk 0:00:26]} 64. Ke6 {[%clk 0:01:06]}  Kc3 {[%clk 0:00:26]} 65. Kd5 {[%clk 0:01:06]}  Kb2 {[%clk 0:00:27]} 66. Rf2+ {[%clk 0:01:06]}  Kb3 {[%clk 0:00:27]} 67. Rf3+ {[%clk 0:01:05]}  Kb2 {[%clk 0:00:28]} 68. Rf2+ {[%clk 0:01:05]}  Kb3 {[%clk 0:00:28]} 69. Rf1 {[%clk 0:01:05]}  Kb2 {[%clk 0:00:29]} 70. Kc4 {[%clk 0:01:03]}  a1=Q {[%clk 0:00:28]} 71. Rxa1 {[%clk 0:01:03]}  Kxa1 {[%clk 0:00:29]} 1/2-1/2


[Site "https://www.chess.com"]

[Event "Titled Tuesday Blitz October 11 Early 2022"]
[White "Weetik, Vjacheslav"]
[Black "Zierk, Steven"]
[WhiteFideId "4153472"]
[BlackFideId "2034255"]
[WhiteElo "2469"]
[BlackElo "2494"]
[Result "1-0"]
[Round "08"]
[TimeControl "180+1"]
[Date "2022.10.11"]
[WhiteClock "0:00:28"]
[BlackClock "0:00:06"]

1. d4 {[%clk 0:02:59]}  d5 {[%clk 0:02:59]} 2. Bf4 {[%clk 0:02:59]}  Nf6 {[%clk 0:02:57]} 3. e3 {[%clk 0:02:59]}  c5 {[%clk 0:02:57]} 4. c3 {[%clk 0:02:59]}  Qb6 {[%clk 0:02:51]} 5. Qb3 {[%clk 0:02:56]}  Nc6 {[%clk 0:02:49]} 6. Nd2 {[%clk 0:02:56]}  c4 {[%clk 0:02:34]} 7. Qc2 {[%clk 0:02:55]}  Bg4 {[%clk 0:02:35]} 8. b3 {[%clk 0:02:49]}  cxb3 {[%clk 0:02:34]} 9. axb3 {[%clk 0:02:50]}  e6 {[%clk 0:02:33]} 10. Ngf3 {[%clk 0:02:40]}  Be7 {[%clk 0:02:28]} 11. Bd3 {[%clk 0:02:34]}  O-O {[%clk 0:02:26]} 12. Ne5 {[%clk 0:02:33]}  Bh5 {[%clk 0:02:19]} 13. Bg5 {[%clk 0:02:32]}  Bg6 {[%clk 0:02:13]} 14. Bxf6 {[%clk 0:02:20]}  gxf6 {[%clk 0:01:56]} 15. Nd7 {[%clk 0:02:19]}  Qc7 {[%clk 0:01:53]} 16. Nxf8 {[%clk 0:02:15]}  Bxf8 {[%clk 0:01:53]} 17. Bxg6 {[%clk 0:02:02]}  hxg6 {[%clk 0:01:54]} 18. O-O {[%clk 0:02:00]}  e5 {[%clk 0:01:51]} 19. Qd3 {[%clk 0:01:56]}  e4 {[%clk 0:01:46]} 20. Qb5 {[%clk 0:01:55]}  Rd8 {[%clk 0:01:36]} 21. f4 {[%clk 0:01:39]}  Ne7 {[%clk 0:01:23]} 22. c4 {[%clk 0:01:35]}  Nf5 {[%clk 0:01:20]} 23. Rxa7 {[%clk 0:01:13]}  Nxe3 {[%clk 0:01:13]} 24. Rxb7 {[%clk 0:01:13]}  Qc8 {[%clk 0:01:12]} 25. c5 {[%clk 0:01:01]}  Nxf1 {[%clk 0:01:03]} 26. Nxf1 {[%clk 0:01:01]}  Qg4 {[%clk 0:00:58]} 27. g3 {[%clk 0:00:59]}  Qf3 {[%clk 0:00:54]} 28. Qb6 {[%clk 0:00:50]}  e3 {[%clk 0:00:51]} 29. Nxe3 {[%clk 0:00:31]}  Qxe3+ {[%clk 0:00:37]} 30. Kg2 {[%clk 0:00:32]}  Qd2+ {[%clk 0:00:35]} 31. Kh3 {[%clk 0:00:32]}  Qe2 {[%clk 0:00:11]} 32. Qxf6 {[%clk 0:00:31]}  Qe6+ {[%clk 0:00:08]} 33. Qxe6 {[%clk 0:00:31]}  fxe6 {[%clk 0:00:09]} 34. b4 {[%clk 0:00:30]}  Ra8 {[%clk 0:00:08]} 35. b5 {[%clk 0:00:28]}  Ra4 {[%clk 0:00:06]} 36. c6 {[%clk 0:00:28]}  Rxd4 {[%clk 0:00:06]} 37. c7 {[%clk 0:00:28]}  Rc4 {[%clk 0:00:06]} 38. b6 {[%clk 0:00:28]} 1-0


[Site "https://www.chess.com"]

[Event "Titled Tuesday Blitz October 11 Early 2022"]
[White "Winkels, Marcel"]
[Black "Rodriguez Santiago, Jaime"]
[WhiteFideId "1003887"]
[BlackFideId "3100898"]
[WhiteElo "1900"]
[BlackElo "2025"]
[Result "0-1"]
[Round "08"]
[TimeControl "180+1"]
[Date "2022.10.12"]
[WhiteClock "0:00:10"]
[BlackClock "0:00:25"]

1. d4 {[%clk 0:03:00]}  d5 {[%clk 0:02:58]} 2. Nc3 {[%clk 0:02:59]}  c6 {[%clk 0:02:56]} 3. Bf4 {[%clk 0:03:00]}  a6 {[%clk 0:02:55]} 4. e3 {[%clk 0:03:00]}  Nf6 {[%clk 0:02:54]} 5. f3 {[%clk 0:03:00]}  Bf5 {[%clk 0:02:54]} 6. g4 {[%clk 0:02:59]}  Bg6 {[%clk 0:02:54]} 7. h4 {[%clk 0:02:55]}  h5 {[%clk 0:02:53]} 8. g5 {[%clk 0:02:55]}  Nfd7 {[%clk 0:02:51]} 9. Qd2 {[%clk 0:02:51]}  e6 {[%clk 0:02:48]} 10. O-O-O {[%clk 0:02:50]}  c5 {[%clk 0:02:46]} 11. Nge2 {[%clk 0:02:48]}  Nc6 {[%clk 0:02:45]} 12. Bg3 {[%clk 0:02:40]}  cxd4 {[%clk 0:02:45]} 13. exd4 {[%clk 0:02:37]}  Rc8 {[%clk 0:02:36]} 14. Nf4 {[%clk 0:02:34]}  Bf5 {[%clk 0:02:26]} 15. Bh3 {[%clk 0:02:21]}  Bxh3 {[%clk 0:02:24]} 16. Rxh3 {[%clk 0:02:21]}  g6 {[%clk 0:02:11]} 17. Kb1 {[%clk 0:02:12]}  Bg7 {[%clk 0:02:10]} 18. Nce2 {[%clk 0:02:09]}  Qb6 {[%clk 0:02:06]} 19. c3 {[%clk 0:02:08]}  Na5 {[%clk 0:02:04]} 20. Ka1 {[%clk 0:01:55]}  Nc4 {[%clk 0:02:03]} 21. Qc2 {[%clk 0:01:54]}  Ne3 {[%clk 0:01:59]} 22. Qd2 {[%clk 0:01:51]}  Nxd1 {[%clk 0:01:59]} 23. Qxd1 {[%clk 0:01:51]}  O-O {[%clk 0:01:50]} 24. Qd3 {[%clk 0:01:47]}  Qb5 {[%clk 0:01:48]} 25. Qc2 {[%clk 0:01:45]}  Nb6 {[%clk 0:01:47]} 26. Nd3 {[%clk 0:01:36]}  Nc4 {[%clk 0:01:45]} 27. f4 {[%clk 0:01:35]}  Ne3 {[%clk 0:01:43]} 28. Qd2 {[%clk 0:01:31]}  Nf5 {[%clk 0:01:43]} 29. Ne5 {[%clk 0:01:28]}  Bxe5 {[%clk 0:01:41]} 30. fxe5 {[%clk 0:01:26]}  Qa4 {[%clk 0:01:37]} 31. Rh1 {[%clk 0:01:24]}  b5 {[%clk 0:01:37]} 32. Be1 {[%clk 0:01:20]}  a5 {[%clk 0:01:35]} 33. b3 {[%clk 0:01:16]}  Qa3 {[%clk 0:01:34]} 34. Qb2 {[%clk 0:01:10]}  Qe7 {[%clk 0:01:32]} 35. Bd2 {[%clk 0:01:09]}  a4 {[%clk 0:01:30]} 36. b4 {[%clk 0:01:08]}  Rc7 {[%clk 0:01:28]} 37. Rh3 {[%clk 0:01:05]}  Rfc8 {[%clk 0:01:28]} 38. Rh1 {[%clk 0:01:04]}  Qd7 {[%clk 0:01:25]} 39. Nc1 {[%clk 0:01:00]}  Qc6 {[%clk 0:01:25]} 40. Nd3 {[%clk 0:00:59]}  Qc4 {[%clk 0:01:19]} 41. Nc5 {[%clk 0:00:58]}  Qe2 {[%clk 0:01:18]} 42. Qc1 {[%clk 0:00:48]}  Qg4 {[%clk 0:01:05]} 43. Qe1 {[%clk 0:00:46]}  a3 {[%clk 0:01:01]} 44. Bc1 {[%clk 0:00:39]}  Nxd4 {[%clk 0:01:01]} 45. cxd4 {[%clk 0:00:36]}  Qxd4+ {[%clk 0:01:01]} 46. Kb1 {[%clk 0:00:37]}  Rxc5 {[%clk 0:00:53]} 47. bxc5 {[%clk 0:00:35]}  Rxc5 {[%clk 0:00:49]} 48. Rh2 {[%clk 0:00:35]}  Qd3+ {[%clk 0:00:46]} 49. Ka1 {[%clk 0:00:33]}  b4 {[%clk 0:00:42]} 50. Rf2 {[%clk 0:00:27]}  b3 {[%clk 0:00:38]} 51. axb3 {[%clk 0:00:26]}  Qxb3 {[%clk 0:00:37]} 52. Qf1 {[%clk 0:00:24]}  Rc7 {[%clk 0:00:33]} 53. Qe1 {[%clk 0:00:20]}  d4 {[%clk 0:00:33]} 54. Ra2 {[%clk 0:00:18]}  d3 {[%clk 0:00:32]} 55. Rxa3 {[%clk 0:00:17]}  Qc2 {[%clk 0:00:25]} 56. Bb2 {[%clk 0:00:11]}  d2 {[%clk 0:00:25]} 57. Qb1 {[%clk 0:00:10]}  d1=Q {[%clk 0:00:25]} 0-1


[Site "https://www.chess.com"]

[Event "Titled Tuesday Blitz October 11 Early 2022"]
[White "Wirig, Anthony"]
[Black "Tologon tegin, Semetei"]
[WhiteFideId "615013"]
[BlackFideId "13800574"]
[WhiteElo "2474"]
[BlackElo "2282"]
[Result "1-0"]
[Round "08"]
[TimeControl "180+1"]
[Date "2022.10.12"]
[WhiteClock "0:00:15"]
[BlackClock "0:00:09"]

1. d4 {[%clk 0:03:00]}  Nf6 {[%clk 0:02:58]} 2. Bg5 {[%clk 0:03:00]}  e6 {[%clk 0:02:52]} 3. e4 {[%clk 0:03:00]}  h6 {[%clk 0:02:52]} 4. Bxf6 {[%clk 0:03:00]}  Qxf6 {[%clk 0:02:52]} 5. c3 {[%clk 0:03:00]}  c5 {[%clk 0:02:49]} 6. Nf3 {[%clk 0:02:58]}  cxd4 {[%clk 0:02:48]} 7. cxd4 {[%clk 0:02:58]}  Nc6 {[%clk 0:02:35]} 8. Nc3 {[%clk 0:02:57]}  Bb4 {[%clk 0:02:31]} 9. e5 {[%clk 0:02:53]}  Qe7 {[%clk 0:02:27]} 10. Bb5 {[%clk 0:02:43]}  d6 {[%clk 0:02:23]} 11. Bxc6+ {[%clk 0:02:33]}  bxc6 {[%clk 0:02:24]} 12. exd6 {[%clk 0:02:33]}  Qxd6 {[%clk 0:02:23]} 13. O-O {[%clk 0:02:30]}  O-O {[%clk 0:02:20]} 14. Qc2 {[%clk 0:02:18]}  Rb8 {[%clk 0:01:55]} 15. Rac1 {[%clk 0:02:15]}  Ba6 {[%clk 0:01:47]} 16. Rfd1 {[%clk 0:02:10]}  Rfc8 {[%clk 0:01:47]} 17. Ne4 {[%clk 0:02:06]}  Qd5 {[%clk 0:01:45]} 18. a3 {[%clk 0:01:58]}  Be7 {[%clk 0:01:36]} 19. b4 {[%clk 0:01:36]}  Bb5 {[%clk 0:01:09]} 20. Nc5 {[%clk 0:01:14]}  Bxc5 {[%clk 0:00:54]} 21. dxc5 {[%clk 0:01:11]}  Qh5 {[%clk 0:00:52]} 22. Rd7 {[%clk 0:01:06]}  a5 {[%clk 0:00:38]} 23. bxa5 {[%clk 0:01:06]}  Ra8 {[%clk 0:00:37]} 24. Qd2 {[%clk 0:01:05]}  Qg4 {[%clk 0:00:25]} 25. Rxf7 {[%clk 0:00:41]}  Rd8 {[%clk 0:00:19]} 26. Rd7 {[%clk 0:00:37]}  Rxd7 {[%clk 0:00:17]} 27. Qxd7 {[%clk 0:00:38]}  Kh7 {[%clk 0:00:17]} 28. h3 {[%clk 0:00:34]}  Qf5 {[%clk 0:00:15]} 29. Re1 {[%clk 0:00:33]}  Rxa5 {[%clk 0:00:15]} 30. Rxe6 {[%clk 0:00:29]}  Bd3 {[%clk 0:00:13]} 31. Nd4 {[%clk 0:00:19]}  Qg5 {[%clk 0:00:10]} 32. Nxc6 {[%clk 0:00:16]}  Rxc5 {[%clk 0:00:10]} 33. Qxd3+ {[%clk 0:00:15]}  Qf5 {[%clk 0:00:10]} 34. Qxf5+ {[%clk 0:00:15]}  Rxf5 {[%clk 0:00:09]} 35. Re3 {[%clk 0:00:15]} 1-0


[Site "https://www.chess.com"]

[Event "Titled Tuesday Blitz October 11 Early 2022"]
[White "Xu, Yi"]
[Black "Chigaev, Maksim"]
[WhiteFideId "8605564"]
[BlackFideId "4108116"]
[WhiteElo "2471"]
[BlackElo "2537"]
[Result "1-0"]
[Round "08"]
[TimeControl "180+1"]
[Date "2022.10.11"]
[WhiteClock "0:00:18"]
[BlackClock "0:00:20"]

1. e4 {[%clk 0:03:00]}  c5 {[%clk 0:03:00]} 2. Nf3 {[%clk 0:03:01]}  e6 {[%clk 0:03:01]} 3. d4 {[%clk 0:03:01]}  cxd4 {[%clk 0:03:02]} 4. Nxd4 {[%clk 0:03:02]}  Nf6 {[%clk 0:03:03]} 5. Nc3 {[%clk 0:03:02]}  Nc6 {[%clk 0:03:03]} 6. Nxc6 {[%clk 0:03:02]}  bxc6 {[%clk 0:03:04]} 7. e5 {[%clk 0:03:02]}  Nd5 {[%clk 0:03:05]} 8. Ne4 {[%clk 0:03:03]}  Qc7 {[%clk 0:03:00]} 9. f4 {[%clk 0:03:03]}  Rb8 {[%clk 0:02:58]} 10. c4 {[%clk 0:02:51]}  Bb4+ {[%clk 0:02:58]} 11. Ke2 {[%clk 0:02:51]}  O-O {[%clk 0:02:59]} 12. cxd5 {[%clk 0:02:49]}  cxd5 {[%clk 0:03:00]} 13. Ng5 {[%clk 0:02:47]}  d6 {[%clk 0:03:00]} 14. Nf3 {[%clk 0:02:43]}  dxe5 {[%clk 0:02:52]} 15. fxe5 {[%clk 0:02:40]}  f6 {[%clk 0:02:53]} 16. exf6 {[%clk 0:02:19]}  Rxf6 {[%clk 0:02:52]} 17. Be3 {[%clk 0:02:13]}  Bc5 {[%clk 0:02:08]} 18. Qc2 {[%clk 0:01:52]}  Ba6+ {[%clk 0:02:03]} 19. Kd1 {[%clk 0:01:51]}  Bxf1 {[%clk 0:01:50]} 20. Rxf1 {[%clk 0:01:17]}  d4 {[%clk 0:01:51]} 21. Bd2 {[%clk 0:00:55]}  Qd6 {[%clk 0:01:36]} 22. Re1 {[%clk 0:00:50]}  d3 {[%clk 0:01:19]} 23. Qc3 {[%clk 0:00:50]}  Bf2 {[%clk 0:00:52]} 24. Re4 {[%clk 0:00:38]}  h6 {[%clk 0:00:40]} 25. Rc1 {[%clk 0:00:37]}  Bb6 {[%clk 0:00:41]} 26. Qe5 {[%clk 0:00:34]}  Qf8 {[%clk 0:00:38]} 27. Rc6 {[%clk 0:00:27]}  Rxf3 {[%clk 0:00:18]} 28. gxf3 {[%clk 0:00:27]}  Qxf3+ {[%clk 0:00:18]} 29. Kc1 {[%clk 0:00:27]}  Qh1+ {[%clk 0:00:19]} 30. Be1 {[%clk 0:00:23]}  Be3+ {[%clk 0:00:19]} 31. Rxe3 {[%clk 0:00:19]}  Qxc6+ {[%clk 0:00:20]} 32. Bc3 {[%clk 0:00:19]}  Qh1+ {[%clk 0:00:18]} 33. Re1 {[%clk 0:00:19]}  Qg2 {[%clk 0:00:19]} 34. Qxe6+ {[%clk 0:00:18]}  Kh7 {[%clk 0:00:20]} 35. Qe4+ {[%clk 0:00:18]} 1-0


[Site "https://www.chess.com"]